bitfinex/quotes_BTCUSD_20251207
["timestamp","ask_amount","ask_price","bid_price","bid_amount"]
[1765103562987,0.58188927,89205.0,89204.0,0.00386922]
[1765103563399,0.64687058,89205.0,89204.0,0.00386922]
[1765103564187,1.99738126,89205.0,89204.0,0.00386922]
[1765103564777,2.00038126,89205.0,89204.0,0.00386922]
[1765103565026,2.11008632,89205.0,89204.0,0.00386922]
[1765103566277,2.51008632,89205.0,89204.0,0.00386922]
[1765103567325,2.49850432,89205.0,89204.0,0.00386922]
[1765103568283,2.16326032,89205.0,89204.0,0.00386922]
[1765103571375,2.22578331,89205.0,89204.0,0.00386922]
[1765103574342,0.60973572,89201.0,89200.0,0.0002]
[1765103574543,2.77184738,89201.0,89200.0,0.0002]
[1765103574953,2.77633772,89201.0,89200.0,0.0002]
[1765103575982,2.78133772,89201.0,89200.0,0.0002]
[1765103576591,2.78233772,89201.0,89200.0,0.0002]
[1765103577450,2.78233772,89201.0,89190.0,0.0002]
[1765103577451,0.54723787,89191.0,89190.0,0.0002]
[1765103577683,1.96449459,89191.0,89190.0,0.0002]
[1765103577889,1.98870826,89191.0,89190.0,0.0002]
[1765103578144,1.99319893,89191.0,89190.0,0.0002]
[1765103578285,2.03345879,89191.0,89190.0,0.0002]
[1765103578629,2.03352487,89191.0,89190.0,0.0002]
[1765103579039,2.03552487,89191.0,89190.0,0.0002]
[1765103579275,1.96550987,89191.0,89190.0,0.0002]
[1765103579553,1.72630987,89191.0,89190.0,0.0002]
[1765103580740,1.72624425,89191.0,89190.0,0.0002]
[1765103581122,1.72624425,89191.0,89190.0,0.00062513]
[1765103581522,2.12624425,89191.0,89190.0,0.00062513]
[1765103581767,1.34972446,89191.0,89190.0,0.00062513]
[1765103581967,0.63167546,89191.0,89190.0,0.00062513]
[1765103582145,0.2684156,89191.0,89190.0,0.00062513]
[1765103582354,0.24426755,89191.0,89190.0,0.00062513]
[1765103582553,0.30000487,89191.0,89190.0,0.01655513]
[1765103582757,0.30725194,89191.0,89190.0,0.01655513]
[1765103582954,0.08301407,89191.0,89190.0,0.03986513]
[1765103583181,0.06529407,89191.0,89190.0,0.03986513]
[1765103583412,0.08001407,89191.0,89190.0,0.26410551]
[1765103584002,0.08001407,89191.0,89190.0,0.03986513]
[1765103584199,0.07801407,89191.0,89190.0,0.03986513]
[1765103584444,0.0735234,89191.0,89190.0,0.03986513]
[1765103584668,0.0735234,89191.0,89190.0,0.04386513]
[1765103584980,0.0735234,89191.0,89190.0,0.26810551]
[1765103586448,0.01778608,89191.0,89190.0,0.26810551]
[1765103599013,6.608e-05,89191.0,89190.0,0.26810551]
[1765103611160,6.608e-05,89191.0,89190.0,0.26710551]
[1765103611628,0.00106608,89191.0,89190.0,0.27310551]
[1765103612127,6.608e-05,89191.0,89190.0,0.26410551]
[1765103612454,0.00106608,89191.0,89190.0,0.27710551]
[1765103613348,0.00106608,89191.0,89190.0,0.29478551]
[1765103613477,0.00206608,89191.0,89190.0,0.30078551]
[1765103624024,0.00106608,89191.0,89190.0,0.29478551]
[1765103624227,0.00206608,89191.0,89190.0,0.30278551]
[1765103624651,0.00106608,89191.0,89190.0,0.28978551]
[1765103624857,0.00106608,89191.0,89190.0,0.30078551]
[1765103642158,0.00106608,89191.0,89190.0,0.28310551]
[1765103642358,0.00106608,89191.0,89190.0,0.03555513]
[1765103642581,0.00106608,89191.0,89190.0,0.25979551]
[1765103642766,0.00106608,89191.0,89190.0,0.01962513]
[1765103643296,0.00106608,89191.0,89190.0,0.03578513]
[1765103643489,6.608e-05,89191.0,89190.0,0.04043513]
[1765103643692,6.608e-05,89191.0,89190.0,0.04543513]
[1765103643909,6.608e-05,89191.0,89190.0,0.05043513]
[1765103646152,6.608e-05,89191.0,89190.0,0.02678513]
[1765103646360,6.608e-05,89191.0,89190.0,0.05043513]
[1765103651765,6.608e-05,89191.0,89190.0,0.07285916]
[1765103651966,6.608e-05,89191.0,89190.0,0.05043513]
[1765103655214,6.608e-05,89191.0,89190.0,0.02678513]
[1765103655420,6.608e-05,89191.0,89190.0,0.01062513]
[1765103655810,6.608e-05,89191.0,89190.0,0.23486551]
[1765103655991,6.608e-05,89191.0,89190.0,0.01062513]
[1765103656585,6.608e-05,89191.0,89190.0,0.23486551]
[1765103657133,6.608e-05,89191.0,89190.0,0.01062513]
[1765103657515,6.608e-05,89191.0,89190.0,0.27556551]
[1765103657884,6.608e-05,89191.0,89190.0,0.25140551]
[1765103659706,6.608e-05,89191.0,89190.0,0.27556551]
[1765103662481,6.608e-05,89191.0,89190.0,0.23486551]
[1765103665940,6.608e-05,89191.0,89190.0,0.01062513]
[1765103668184,0.01116797,89193.0,89190.0,0.01062513]
[1765103668384,0.01116797,89193.0,89190.0,0.01059485]
[1765103668588,0.01116797,89193.0,89192.0,0.00036439]
[1765103669880,0.01121151,89194.0,89192.0,0.04506439]
[1765103670091,0.01121139,89195.0,89192.0,0.05591176]
[1765103670285,0.01121139,89195.0,89192.0,0.0447]
[1765103670487,0.23544119,89195.0,89192.0,0.02054]
[1765103670833,0.23544384,89194.0,89190.0,0.01180686]
[1765103671239,0.01121164,89193.0,89192.0,0.005]
[1765103671732,0.01121164,89193.0,89190.0,0.01180686]
[1765103672032,0.01121164,89193.0,89190.0,0.00059485]
[1765103672139,0.01121164,89193.0,89190.0,0.00559485]
[1765103672140,0.22423535,89192.0,89190.0,0.00559485]
[1765103672580,0.22423535,89192.0,89190.0,0.00059485]
[1765103673040,0.22423535,89192.0,89190.0,0.00559485]
[1765103673223,0.22423535,89192.0,89190.0,0.01059485]
[1765103673401,0.22423535,89192.0,89190.0,0.00559485]
[1765103673928,0.22423535,89192.0,89190.0,0.01059485]
[1765103674130,0.22423535,89192.0,89190.0,0.00559485]
[1765103674516,0.22423535,89192.0,89190.0,0.01059485]
[1765103679611,0.22423535,89192.0,89190.0,0.00559485]
[1765103680039,0.22423535,89192.0,89191.0,0.00039476]
[1765103680407,0.22523535,89192.0,89191.0,0.00039476]
[1765103681064,0.22423535,89192.0,89191.0,0.00039476]
[1765103681202,0.22523535,89192.0,89191.0,0.00039476]
[1765103696906,0.55874527,89192.0,89191.0,0.00039476]
[1765103697251,0.58242842,89192.0,89191.0,0.00039476]
[1765103697500,0.60664369,89192.0,89191.0,0.00039476]
[1765103705510,0.60664022,89192.0,89191.0,0.00039476]
[1765103718618,0.05940487,89192.0,89191.0,0.24076263]
[1765103718748,0.001,89192.0,89191.0,0.26379263]
[1765103719348,0.001,89192.0,89191.0,0.03955476]
[1765103719692,0.01121139,89195.0,89192.0,0.22423535]
[1765103719887,0.01121126,89196.0,89192.0,0.23544711]
[1765103720202,0.01121126,89196.0,89194.0,0.00030365]
[1765103720392,0.01121126,89196.0,89192.0,0.23544711]
[1765103720629,0.01121126,89196.0,89195.0,0.00027328]
[1765103723552,0.44741238,89196.0,89195.0,0.00027328]
[1765103723704,0.43279223,89196.0,89195.0,0.00027328]
[1765103724072,0.40258727,89196.0,89195.0,0.00027328]
[1765103725521,0.40258821,89196.0,89195.0,0.00027328]
[1765103725735,0.40658821,89196.0,89195.0,0.00027328]
[1765103726238,2.40658821,89196.0,89195.0,0.00027328]
[1765103730886,2.43679317,89196.0,89195.0,0.00027328]
[1765103732280,2.40658821,89196.0,89195.0,0.00027328]
[1765103734468,2.40658017,89196.0,89195.0,0.00027328]
[1765103734872,2.80658017,89196.0,89195.0,0.00027328]
[1765103736696,2.40658017,89196.0,89195.0,0.00027328]
[1765103737296,2.80658017,89196.0,89195.0,0.00027328]
[1765103737503,2.91628523,89196.0,89195.0,0.00027328]
[1765103738490,2.95658564,89196.0,89195.0,0.00027328]
[1765103738859,2.91628523,89196.0,89195.0,0.00027328]
[1765103740239,2.95658105,89196.0,89195.0,0.00027328]
[1765103741169,2.91628523,89196.0,89195.0,0.00027328]
[1765103741371,2.84687184,89196.0,89195.0,0.00027328]
[1765103747271,2.80658017,89196.0,89195.0,0.00027328]
[1765103748206,2.82426017,89196.0,89195.0,0.00027328]
[1765103748893,2.86455184,89196.0,89195.0,0.00027328]
[1765103751311,2.8242477,89196.0,89195.0,0.00027328]
[1765103751977,2.93395276,89196.0,89195.0,0.00027328]
[1765103757676,2.99434255,89196.0,89195.0,0.00027328]
[1765103758143,2.90976091,89196.0,89195.0,0.00027328]
[1765103758306,2.9701507,89196.0,89195.0,0.00027328]
[1765103760210,2.90976091,89196.0,89195.0,0.00027328]
[1765103762374,2.9722839,89196.0,89195.0,0.00027328]
[1765103770630,2.38552299,89191.0,89190.0,0.00059485]
[1765103770866,2.39601383,89191.0,89190.0,0.00059485]
[1765103771291,2.40050466,89191.0,89190.0,0.00059485]
[1765103771486,2.86105041,89191.0,89190.0,0.00059485]
[1765103772593,2.80050466,89191.0,89190.0,0.00059485]
[1765103772769,2.89114692,89191.0,89190.0,0.00059485]
[1765103773885,2.84630393,89191.0,89190.0,0.00059485]
[1765103774197,2.78575818,89191.0,89190.0,0.00059485]
[1765103780705,2.84630393,89191.0,89190.0,0.00059485]
[1765103780948,2.78575818,89191.0,89190.0,0.00059485]
[1765103781324,2.84630393,89191.0,89190.0,0.00059485]
[1765103792332,2.84828117,89191.0,89190.0,0.00059485]
[1765103794755,2.78575818,89191.0,89190.0,0.00059485]
[1765103796987,2.84630927,89191.0,89190.0,0.00059485]
[1765103797807,2.84631225,89191.0,89190.0,0.00059485]
[1765103799323,2.78575818,89191.0,89190.0,0.00059485]
[1765103800898,2.78575818,89191.0,89190.0,0.01718485]
[1765103800899,2.07854788,89191.0,89190.0,0.01718485]
[1765103801071,2.03117084,89191.0,89190.0,0.00059485]
[1765103801829,2.35417084,89191.0,89190.0,0.00059485]
[1765103802032,2.50424901,89191.0,89190.0,0.00059485]
[1765103802397,2.50873925,89191.0,89190.0,0.00059485]
[1765103802610,2.46836614,89191.0,89190.0,0.00059485]
[1765103804797,2.86836614,89191.0,89190.0,0.00059485]
[1765103808998,2.93088913,89191.0,89190.0,0.00059485]
[1765103824114,2.53088913,89191.0,89190.0,0.00059485]
[1765103826629,2.59141658,89191.0,89190.0,0.00059485]
[1765103828182,2.99141658,89191.0,89190.0,0.00059485]
[1765103828523,2.93088913,89191.0,89190.0,0.00059485]
[1765103829392,2.99141692,89191.0,89190.0,0.00059485]
[1765103831333,2.93088913,89191.0,89190.0,0.00059485]
[1765103836044,0.6097684,89188.0,89187.0,0.00024296]
[1765103836291,2.7299643,89188.0,89187.0,0.0003613]
[1765103836646,2.73445517,89188.0,89187.0,0.0003613]
[1765103836875,3.13445517,89188.0,89187.0,0.0003613]
[1765103837323,3.13645517,89188.0,89187.0,0.0003613]
[1765103842113,3.19703187,89188.0,89187.0,0.0003613]
[1765103843490,2.56422712,89188.0,89187.0,0.0003613]
[1765103846606,2.58190712,89188.0,89187.0,0.0003613]
[1765103851146,2.98190712,89188.0,89187.0,0.0003613]
[1765103852209,2.58190712,89188.0,89187.0,0.0003613]
[1765103852432,2.24122712,89188.0,89187.0,0.0401213]
[1765103852609,2.28469472,89188.0,89187.0,0.0401213]
[1765103852808,2.25441625,89188.0,89187.0,0.0003613]
[1765103854330,2.25441625,89188.0,89187.0,0.0401213]
[1765103855021,2.25441625,89188.0,89187.0,0.0165813]
[1765103858623,2.25441625,89188.0,89187.0,0.0401213]
[1765103858969,2.25441625,89188.0,89187.0,0.0165813]
[1765103859670,2.25441625,89188.0,89187.0,0.0401213]
[1765103859871,2.03017084,89188.0,89187.0,0.0401213]
[1765103860077,2.25441625,89188.0,89187.0,0.0401213]
[1765103860278,2.03017084,89188.0,89187.0,0.0401213]
[1765103862017,2.01249084,89188.0,89187.0,0.0401213]
[1765103865836,2.002,89188.0,89187.0,0.0401213]
[1765103867764,2.0,89190.0,89188.0,0.22424541]
[1765103868004,2.0,89190.0,89188.0,0.24840541]
[1765103868172,2.323,89190.0,89189.0,0.03979]
[1765103869667,2.325,89190.0,89189.0,0.03979]
[1765103871680,2.33549362,89190.0,89189.0,0.03979]
[1765103872618,2.33549362,89190.0,89189.0,0.0516]
[1765103872833,2.33349362,89190.0,89189.0,0.0556]
[1765103873236,2.33349362,89190.0,89189.0,0.0616]
[1765103876981,2.0,89190.0,89189.0,0.0616]
[1765103882144,2.01050539,89190.0,89189.0,0.0616]
[1765103893855,0.01121151,89194.0,89189.0,0.0616]
[1765103893856,0.03367095,89199.0,89194.0,0.22422826]
[1765103894056,0.33421076,89200.0,89198.0,0.02696]
[1765103894264,0.01051115,89199.0,89198.0,0.01165]
[1765103894484,0.01051115,89199.0,89198.0,0.23587027]
[1765103894681,0.01768,89202.0,89199.0,0.02286088]
[1765103894873,0.01768,89202.0,89201.0,0.01531]
[1765103895070,0.02818852,89202.0,89201.0,0.01531]
[1765103895313,0.01768,89202.0,89201.0,0.0388]
[1765103895856,0.02268,89202.0,89201.0,0.0388]
[1765103896283,0.01868,89202.0,89201.0,0.0388]
[1765103896491,0.02068,89202.0,89201.0,0.0388]
[1765103896870,0.01868,89202.0,89201.0,0.0388]
[1765103897248,0.01768,89202.0,89201.0,0.0388]
[1765103898167,0.01968,89202.0,89201.0,0.0388]
[1765103898375,0.01968,89202.0,89201.0,0.26301273]
[1765103899408,0.01768,89202.0,89201.0,0.26301273]
[1765103899607,0.01768,89202.0,89201.0,0.26501273]
[1765103900459,0.01768,89202.0,89201.0,0.26701273]
[1765103904087,0.01768,89202.0,89201.0,0.0428]
[1765103908471,0.02888925,89212.0,89209.0,0.01120963]
[1765103908644,0.02888925,89212.0,89210.0,0.01165]
[1765103908645,0.07341732,89211.0,89210.0,0.01165]
[1765103908844,0.01768,89211.0,89210.0,0.03514]
[1765103909140,0.01768,89211.0,89210.0,0.05045]
[1765103910806,0.02168,89211.0,89210.0,0.05045]
[1765103911388,0.02268,89211.0,89210.0,0.05045]
[1765103911775,0.01868,89211.0,89210.0,0.05045]
[1765103911975,0.02068,89211.0,89210.0,0.05045]
[1765103920801,0.02068,89211.0,89210.0,0.07286901]
[1765103921200,0.003,89211.0,89210.0,0.07286901]
[1765103921895,0.003,89211.0,89210.0,0.05045]
[1765103922096,0.003,89211.0,89210.0,0.07286901]
[1765103923423,0.01768,89220.0,89217.0,0.01120862]
[1765103923570,0.01768,89220.0,89219.0,0.0274]
[1765103924234,0.01768,89220.0,89219.0,0.05131]
[1765103924735,0.02007459,89220.0,89219.0,0.05131]
[1765103926566,0.01807459,89220.0,89219.0,0.05531]
[1765103926958,0.01807459,89220.0,89219.0,0.06031]
[1765103929005,0.00039459,89220.0,89219.0,0.06031]
[1765103929881,0.00039459,89220.0,89219.0,0.08272674]
[1765103930205,0.00039459,89220.0,89219.0,0.06031]
[1765103930405,0.00039459,89220.0,89219.0,0.08272674]
[1765103937597,0.00039459,89220.0,89219.0,0.10040674]
[1765103937783,0.00039459,89220.0,89219.0,0.1116131]
[1765103938405,0.00039459,89220.0,89219.0,0.1076131]
[1765103938808,0.00139459,89220.0,89219.0,0.1146131]
[1765103939012,0.00139459,89220.0,89219.0,0.1096131]
[1765103939176,0.00139459,89220.0,89219.0,0.1176131]
[1765103942284,0.00139459,89220.0,89219.0,0.4406131]
[1765103942486,0.00139459,89220.0,89219.0,0.41819636]
[1765103952645,0.00139459,89220.0,89219.0,0.45853797]
[1765103954332,0.00139459,89220.0,89219.0,0.41819636]
[1765103954739,0.00139459,89220.0,89219.0,0.45831355]
[1765103954945,0.00139459,89220.0,89219.0,0.41819636]
[1765103957398,0.00139459,89220.0,89219.0,0.45832468]
[1765103958342,0.00139459,89220.0,89219.0,0.40051636]
[1765103958573,0.00139459,89220.0,89219.0,0.41819636]
[1765103960223,0.00139459,89220.0,89219.0,0.44064636]
[1765103960400,0.00139459,89220.0,89219.0,0.41819636]
[1765103961151,0.00139459,89220.0,89219.0,0.40051636]
[1765103961350,0.00139459,89220.0,89219.0,0.41819636]
[1765103975112,0.25429272,89259.0,89219.0,0.41819636]
[1765103975113,0.01120397,89254.0,89251.0,0.01120435]
[1765103975312,0.05573732,89253.0,89252.0,0.01131]
[1765103975461,0.01050736,89253.0,89252.0,0.03608]
[1765103975665,0.0233242,89254.0,89252.0,0.05121]
[1765103975884,0.0233242,89254.0,89253.0,0.0399]
[1765103976284,0.01512023,89254.0,89253.0,0.0399]
[1765103976489,0.00461287,89254.0,89253.0,0.0399]
[1765103976690,0.00161287,89254.0,89253.0,0.0399]
[1765103977090,0.00461287,89254.0,89253.0,0.0399]
[1765103978599,0.00161287,89254.0,89253.0,0.0399]
[1765103978985,0.00361287,89254.0,89253.0,0.0399]
[1765103979463,0.00161287,89254.0,89253.0,0.0399]
[1765103979838,0.00361287,89254.0,89253.0,0.0399]
[1765103980213,0.00161287,89254.0,89253.0,0.0399]
[1765103981653,0.00361287,89254.0,89253.0,0.0399]
[1765103983449,0.002,89254.0,89253.0,0.0399]
[1765103984495,0.02171083,89258.0,89254.0,0.23528344]
[1765103984695,0.01120347,89258.0,89257.0,0.02757]
[1765103985096,0.01120347,89258.0,89257.0,0.05107]
[1765103985778,0.02371083,89258.0,89257.0,0.05107]
[1765103986015,0.01250736,89258.0,89257.0,0.05107]
[1765103986244,0.02171071,89259.0,89257.0,0.05107]
[1765103986421,0.02171071,89259.0,89258.0,0.03886]
[1765103987825,0.02371071,89259.0,89258.0,0.03886]
[1765103988186,0.01250736,89259.0,89258.0,0.03886]
[1765103988404,0.02171046,89261.0,89258.0,0.03886]
[1765103988668,0.02171046,89261.0,89260.0,0.01536]
[1765103989034,0.02171046,89261.0,89260.0,0.03886]
[1765103989222,0.01050736,89261.0,89260.0,0.03886]
[1765103989424,0.02818736,89262.0,89260.0,0.03886]
[1765103989593,0.02818736,89262.0,89261.0,0.05107]
[1765103991945,0.03018736,89262.0,89261.0,0.05107]
[1765103992084,0.01968,89262.0,89261.0,0.05107]
[1765103993132,0.03018736,89262.0,89261.0,0.05107]
[1765103993327,0.24373951,89262.0,89261.0,0.05107]
[1765103993513,0.25424687,89262.0,89261.0,0.05107]
[1765103993910,0.25224687,89262.0,89261.0,0.05107]
[1765103994435,0.01868,89262.0,89261.0,0.05107]
[1765103995536,0.24273951,89262.0,89261.0,0.05107]
[1765103995783,0.25323517,89262.0,89261.0,0.05107]
[1765103996371,0.25323403,89262.0,89261.0,0.05107]
[1765103997371,0.24273951,89262.0,89261.0,0.05107]
[1765103998585,0.01868,89262.0,89261.0,0.05107]
[1765104003258,0.02917584,89262.0,89261.0,0.05107]
[1765104003486,0.01868,89262.0,89261.0,0.05107]
[1765104004284,0.02917653,89262.0,89261.0,0.05107]
[1765104008650,0.01868,89262.0,89261.0,0.05107]
[1765104009950,0.01768,89262.0,89261.0,0.05107]
[1765104010326,0.01868,89262.0,89261.0,0.05107]
[1765104016174,0.001,89262.0,89261.0,0.05107]
[1765104016981,0.001,89262.0,89261.0,0.0734762]
[1765104017547,0.001,89262.0,89261.0,0.29753822]
[1765104017760,0.001,89262.0,89261.0,0.27513202]
[1765104019165,0.001,89262.0,89261.0,0.05107]
[1765104022148,0.001,89262.0,89261.0,0.27513202]
[1765104023728,0.001,89262.0,89261.0,0.05107]
[1765104024153,0.01120272,89264.0,89261.0,0.05107]
[1765104024362,0.01120272,89264.0,89263.0,0.02768]
[1765104024911,0.01120222,89268.0,89264.0,0.01120272]
[1765104025065,0.01120247,89266.0,89264.0,0.02385]
[1765104025266,0.01120234,89267.0,89264.0,0.02385]
[1765104025466,0.01120234,89267.0,89266.0,0.02768]
[1765104026007,0.01768,89271.0,89267.0,0.22404696]
[1765104026210,0.01768,89271.0,89270.0,0.02768]
[1765104026509,0.01768,89271.0,89270.0,0.05153]
[1765104026698,0.01120146,89274.0,89271.0,0.01120184]
[1765104026912,0.01120146,89274.0,89271.0,0.03505184]
[1765104027082,0.01120146,89274.0,89273.0,0.02768]
[1765104027282,0.01120096,89278.0,89274.0,0.01120146]
[1765104027491,0.01120109,89277.0,89274.0,0.03505146]
[1765104027805,0.23522353,89277.0,89274.0,0.02385]
[1765104028019,0.01120096,89278.0,89276.0,0.02768]
[1765104028220,0.01120096,89278.0,89277.0,0.01581]
[1765104028422,0.01120096,89278.0,89277.0,0.03966]
[1765104030319,0.05543731,89279.0,89277.0,0.03966]
[1765104030542,0.05543731,89279.0,89278.0,0.03966]
[1765104031138,0.0004,89280.0,89278.0,0.03966]
[1765104031338,0.0004,89280.0,89279.0,0.03966]
[1765104031957,0.0004,89280.0,89279.0,0.26367684]
[1765104032574,0.0004,89290.0,89289.0,0.22399175]
[1765104032748,0.0004,89290.0,89289.0,0.25167175]
[1765104032960,0.0004,89290.0,89289.0,0.27552175]
[1765104033209,0.0004,89290.0,89289.0,0.28000528]
[1765104034335,0.0004,89290.0,89289.0,0.28500528]
[1765104034715,0.0004,89290.0,89289.0,0.29000528]
[1765104054318,0.0004,89290.0,89289.0,0.67552827]
[1765104054527,0.0004,89300.0,89299.0,0.22396667]
[1765104054686,0.0004,89300.0,89299.0,0.25736667]
[1765104054915,0.0004,89300.0,89299.0,0.28203667]
[1765104055136,0.0004,89300.0,89299.0,0.28651921]
[1765104055337,0.00383706,89306.0,89305.0,0.22395162]
[1765104055570,0.00383706,89306.0,89305.0,0.23967162]
[1765104055773,0.00383706,89306.0,89305.0,0.26434162]
[1765104056380,0.00383706,89306.0,89305.0,0.58734162]
[1765104056580,0.0004,89310.0,89309.0,0.28646458]
[1765104056758,0.00079508,89310.0,89309.0,0.31986458]
[1765104056973,0.00079508,89310.0,89309.0,0.34453458]
[1765104057184,0.00024244,89314.0,89313.0,0.22393156]
[1765104057636,0.00024244,89314.0,89313.0,0.26432156]
[1765104057832,0.00024244,89314.0,89313.0,0.26880335]
[1765104058205,0.00024244,89314.0,89313.0,0.59180335]
[1765104058409,0.00024244,89314.0,89313.0,0.62175299]
[1765104058612,0.00024244,89314.0,89313.0,0.62575299]
[1765104058813,0.00024244,89314.0,89313.0,0.61348335]
[1765104059014,0.00024244,89314.0,89313.0,0.61748335]
[1765104059421,0.00024244,89314.0,89313.0,0.61348335]
[1765104059630,0.00024244,89314.0,89313.0,0.60948335]
[1765104059835,0.0004,89320.0,89319.0,0.54691652]
[1765104060033,0.0004,89320.0,89319.0,0.56263652]
[1765104060233,0.0004,89320.0,89319.0,0.58730652]
[1765104061357,0.0004,89320.0,89319.0,0.59430652]
[1765104064810,0.0004,89320.0,89319.0,0.59878798]
[1765104065697,2.41e-06,89322.0,89321.0,0.6371445]
[1765104065902,2.41e-06,89322.0,89321.0,0.66708862]
[1765104066107,2.41e-06,89322.0,89321.0,0.69175862]
[1765104066306,2.41e-06,89322.0,89321.0,0.66629579]
[1765104066805,0.0004,89330.0,89329.0,0.54689145]
[1765104067006,0.0004,89330.0,89329.0,0.6102187]
[1765104067210,0.0004,89330.0,89329.0,0.6348887]
[1765104067511,0.0004,89330.0,89329.0,0.63936975]
[1765104067790,0.0004,89330.0,89329.0,0.29868975]
[1765104067942,0.0004,89330.0,89329.0,0.2767625]
[1765104068575,0.0004,89330.0,89329.0,0.2817625]
[1765104069304,0.0004,89330.0,89329.0,0.2687625]
[1765104069527,0.0004,89330.0,89329.0,0.2767625]
[1765104072380,0.0004,89340.0,89339.0,0.54686639]
[1765104072612,0.0004,89340.0,89339.0,0.61594639]
[1765104072797,0.00094527,89340.0,89339.0,0.61594639]
[1765104073808,0.00094527,89340.0,89339.0,0.62753707]
[1765104074870,0.00094527,89340.0,89339.0,0.63153707]
[1765104075330,0.00094527,89340.0,89339.0,0.63753707]
[1765104083573,0.00094527,89340.0,89339.0,0.70006006]
[1765104084709,0.00094527,89340.0,89339.0,0.69606006]
[1765104085229,0.00094527,89340.0,89339.0,0.7564288]
[1765104085466,0.00094527,89340.0,89339.0,0.7504288]
[1765104085987,0.00094527,89340.0,89339.0,0.7594288]
[1765104086342,0.00094527,89340.0,89339.0,0.69906006]
[1765104086546,0.00094527,89340.0,89339.0,0.70306006]
[1765104088708,0.00094527,89340.0,89339.0,0.62285707]
[1765104088912,0.00094527,89340.0,89339.0,0.64053707]
[1765104089673,0.00094527,89340.0,89339.0,0.63653707]
[1765104089976,0.00094527,89340.0,89339.0,0.62753707]
[1765104090114,0.00094527,89340.0,89339.0,0.63053707]
[1765104090312,0.00094527,89340.0,89339.0,0.63753707]
[1765104090742,0.00094527,89340.0,89339.0,0.69751555]
[1765104091562,0.00094527,89340.0,89339.0,0.63753707]
[1765104098418,0.00094527,89340.0,89339.0,0.70006006]
[1765104102678,0.00094527,89340.0,89339.0,0.35821297]
[1765104102879,0.00094527,89340.0,89339.0,0.29808707]
[1765104103595,0.00094527,89340.0,89339.0,0.35821297]
[1765104104570,0.00094527,89340.0,89339.0,0.29808707]
[1765104107185,0.00094527,89340.0,89339.0,0.68361006]
[1765104109632,0.00094527,89340.0,89339.0,0.76397623]
[1765104109830,0.00094527,89340.0,89339.0,0.68361006]
[1765104111176,0.0004,89350.0,89349.0,0.22384134]
[1765104111381,0.0004,89350.0,89349.0,0.26916134]
[1765104111382,0.00051852,89350.0,89349.0,0.26916134]
[1765104111536,0.00051852,89350.0,89349.0,0.3539018]
[1765104111740,0.00051852,89350.0,89349.0,0.35838208]
[1765104111741,0.00082139,89350.0,89349.0,0.35838208]
[1765104112379,0.00082139,89350.0,89349.0,0.36038208]
[1765104113096,0.00082139,89350.0,89349.0,0.30028162]
[1765104113426,0.00082139,89350.0,89349.0,0.36438208]
[1765104113543,0.00082139,89350.0,89349.0,0.35838208]
[1765104113977,0.00082139,89350.0,89349.0,0.36738208]
[1765104114492,0.00082139,89350.0,89349.0,0.30728162]
[1765104116794,0.00082139,89350.0,89349.0,0.36738208]
[1765104117664,0.00082139,89350.0,89349.0,0.30728162]
[1765104118399,0.00082139,89350.0,89349.0,0.36738208]
[1765104121701,0.0004,89360.0,89359.0,0.22381629]
[1765104121886,0.0004,89360.0,89359.0,0.26871629]
[1765104122068,0.0004,89360.0,89359.0,0.29245629]
[1765104122481,0.0004,89360.0,89359.0,0.32605454]
[1765104123033,0.0004,89360.0,89359.0,0.33005454]
[1765104123576,0.0004,89360.0,89359.0,0.33205454]
[1765104124532,0.0004,89360.0,89359.0,0.31441454]
[1765104124735,0.0004,89360.0,89359.0,0.33205454]
[1765104125339,0.0004,89360.0,89359.0,0.31441454]
[1765104125854,0.0004,89360.0,89359.0,0.28081629]
[1765104126326,0.0004,89360.0,89359.0,0.31087347]
[1765104126740,0.0004,89360.0,89359.0,0.28081629]
[1765104127415,0.00070282,89360.0,89359.0,0.28081629]
[1765104127879,0.00231569,89360.0,89359.0,0.03326]
[1765104128118,0.00231569,89360.0,89359.0,0.006]
[1765104128322,0.00231569,89360.0,89359.0,0.01801]
[1765104128498,0.22612947,89360.0,89359.0,0.01801]
[1765104128716,0.00231569,89360.0,89359.0,0.01601]
[1765104128899,0.00231569,89360.0,89359.0,0.051]
[1765104129101,0.00231569,89360.0,89359.0,0.055]
[1765104129629,0.00070282,89360.0,89359.0,0.055]
[1765104129808,0.00070282,89360.0,89359.0,0.07738162]
[1765104132246,0.00070282,89360.0,89359.0,0.08505718]
[1765104132403,0.00070282,89360.0,89359.0,0.07574368]
[1765104133039,0.00070282,89360.0,89359.0,0.13349475]
[1765104133400,0.00070282,89360.0,89359.0,0.1334794]
[1765104135404,0.00070282,89360.0,89359.0,0.09342368]
[1765104136454,0.00070282,89360.0,89359.0,0.10461199]
[1765104137208,0.00070282,89360.0,89359.0,0.13512119]
[1765104137554,0.00070282,89360.0,89359.0,0.35893748]
[1765104137768,0.00070282,89360.0,89359.0,0.33655586]
[1765104138065,0.00070282,89360.0,89359.0,0.33656047]
[1765104138212,0.00070282,89360.0,89359.0,0.29649629]
[1765104140064,0.00070282,89360.0,89359.0,0.27881629]
[1765104143709,0.00070282,89360.0,89359.0,0.31241277]
[1765104146358,0.00070282,89360.0,89359.0,0.33009277]
[1765104148333,0.00070282,89360.0,89359.0,0.31241277]
[1765104148535,0.00070282,89360.0,89359.0,0.27881629]
[1765104150391,0.00070282,89360.0,89359.0,0.31887154]
[1765104150593,0.00070282,89360.0,89359.0,0.27881629]
[1765104151365,0.00070282,89360.0,89359.0,0.31887154]
[1765104151835,0.00070282,89360.0,89359.0,0.27881629]
[1765104152633,0.00070282,89360.0,89359.0,0.64187154]
[1765104152958,0.0004,89390.0,89389.0,0.22374117]
[1765104153087,0.00048823,89390.0,89389.0,0.27562117]
[1765104153423,0.00139633,89390.0,89389.0,0.27562117]
[1765104154609,0.00139633,89390.0,89389.0,0.27762117]
[1765104154820,0.00139633,89390.0,89389.0,0.28162117]
[1765104171553,0.18064091,89400.0,89397.0,0.01118605]
[1765104171744,0.00079398,89400.0,89399.0,0.02674]
[1765104171877,0.00079398,89400.0,89399.0,0.05118]
[1765104172858,0.00379398,89400.0,89399.0,0.05118]
[1765104173276,0.00079398,89400.0,89399.0,0.05118]
[1765104174560,0.00379398,89400.0,89399.0,0.05118]
[1765104175127,0.00379398,89400.0,89399.0,0.01147]
[1765104175343,0.00379398,89400.0,89399.0,0.23518614]
[1765104175544,0.00379398,89400.0,89399.0,0.01147]
[1765104177743,0.00379398,89400.0,89399.0,0.23518614]
[1765104177902,0.00379398,89400.0,89399.0,0.01147]
[1765104178270,0.00379398,89400.0,89387.0,0.23493243]
[1765104178271,0.23491799,89393.0,89387.0,0.23493243]
[1765104178492,0.01118643,89394.0,89390.0,0.0127906]
[1765104178666,0.0111863,89395.0,89391.0,0.0111868]